fUSD/lending_fUSD_20260319
["ID","MTS","AMOUNT","RATE_DAILY","PERIOD"]
[408590810,1773905480427,-200.0,0.0003,2]
[408590811,1773905480437,-4191.39607165,0.0003,2]
[408590812,1773905480447,-160.0,0.0003,120]
[408590813,1773905480456,-203.79406184,0.00030009,120]
[408590814,1773905480466,-1000.0,0.000301,2]
[408590815,1773905480476,-300.0,0.000301,2]
[408590816,1773905480485,-13946.5599051,0.0003013,2]
[408590817,1773905480494,-7784.43889118,0.0003013,2]
[408590818,1773905480504,-1081.11592523,0.0003013,2]
[408590819,1773905480514,-638.45674396,0.0003013,2]
[408590820,1773905480524,-203.10900166,0.0003013,2]
[408590821,1773905480533,-3613.47484438,0.00030135,60]
[408590822,1773905480547,-3613.47484438,0.00030135,60]
[408590823,1773905480557,-3613.47484437,0.00030135,60]
[408590824,1773905480567,-1705.2427728,0.00030136,7]
[408590825,1773905480576,-151.0,0.00030136,2]
[408590826,1773905480587,-649.71,0.00030136,120]
[408590827,1773905480597,-500.0,0.00030136,7]
[408590828,1773905480606,-407.49197347,0.00030136,2]
[408590829,1773905480618,-500.0,0.00030136,15]
[408590830,1773905480627,-500.0,0.00030136,2]
[408590831,1773905480637,-500.0,0.00030136,12]
[408590832,1773905480647,-500.0,0.00030136,120]
[408590833,1773905480656,-2522.04,0.00030136,14]
[408590834,1773905480666,-500.0,0.00030136,30]
[408590835,1773905480676,-500.0,0.00030136,30]
[408590836,1773905480686,-875.11,0.00030136,2]
[408590837,1773905480695,-346.27951001,0.00030136,30]
[408590838,1773905480705,-300.0,0.00030136,2]
[408590839,1773905480715,-500.0,0.00030136,120]
[408590840,1773905480724,-1374.85,0.00030136,2]
[408590841,1773905480734,-699.08,0.00030136,120]
[408590842,1773905480743,-880.07,0.00030136,5]
[408590843,1773905480753,-500.0,0.00030136,30]
[408590844,1773905480762,-500.0,0.00030136,120]
[408590845,1773905480772,-500.0,0.00030136,120]
[408590846,1773905480781,-500.0,0.00030136,4]
[408590847,1773905480791,-500.0,0.00030136,120]
[408590848,1773905480800,-500.0,0.00030136,2]
[408590849,1773905480810,-535.46,0.00030136,2]
[408590850,1773905480820,-424.01913949,0.00030136,40]
[408590851,1773905480832,-500.0,0.00030136,2]
[408590852,1773905480842,-826.12,0.00030136,120]
[408590853,1773905480852,-500.0,0.00030136,2]
[408590854,1773905480862,-620.41,0.00030136,2]
[408590855,1773905480872,-812.47,0.00030136,120]
[408590856,1773905480882,-169.25977065,0.00030136,120]
[408590857,1773905480892,-451.59036277,0.00030136,120]
[408590858,1773905480902,-500.0,0.00030136,120]
[408590859,1773905480912,-500.0,0.00030136,120]
[408590860,1773905480921,-500.0,0.00030136,120]
[408590861,1773905480931,-583.826496,0.00030136,120]
[408590862,1773905480941,-2105.78,0.00030136,7]
[408590863,1773905480951,-770.883538,0.00030136,120]
[408590864,1773905480961,-500.0,0.00030136,30]
[408590865,1773905480970,-500.0,0.00030136,120]
[408590866,1773905480979,-500.0,0.00030136,120]
[408590867,1773905480989,-1111.54,0.00030136,120]
[408590868,1773905480999,-556.55345854,0.00030136,120]
[408590869,1773905481008,-677.487905,0.00030136,120]
[408590870,1773905481018,-987.08,0.00030136,120]
[408590871,1773905481027,-500.0,0.00030136,120]
[408590872,1773905481037,-1410.25,0.00030136,120]
[408590873,1773905481047,-1904.73,0.00030136,120]
[408590874,1773905481057,-500.0,0.00030136,120]
[408590875,1773905481067,-500.0,0.00030136,14]
[408590876,1773905481077,-648.19,0.00030136,120]
[408590877,1773905481087,-831.44,0.00030136,120]
[408590878,1773905481096,-380.38088319,0.00030136,10]
[408590879,1773905481105,-796.08,0.00030136,120]
[408590880,1773905481115,-500.0,0.00030136,120]
[408590881,1773905481124,-500.0,0.00030136,120]
[408590882,1773905481135,-600.28,0.00030136,120]
[408590883,1773905481144,-737.65,0.00030136,120]
[408590884,1773905481154,-478.61711648,0.00030136,90]
[408590885,1773905481164,-509.22,0.00030136,120]
[408590886,1773905481173,-500.0,0.00030136,120]
[408590887,1773905481183,-500.0,0.00030136,120]
[408590888,1773905481193,-500.0,0.00030136,90]
[408590889,1773905481203,-500.0,0.00030136,120]
[408590890,1773905481213,-500.0,0.00030136,120]
[408590891,1773905481222,-500.0,0.00030136,120]
[408590892,1773905481232,-500.0,0.00030136,120]
[408590893,1773905481242,-180.11653263,0.00030136,120]
[408590894,1773905481251,-2298.5,0.00030136,120]
[408590895,1773905481261,-879.95,0.00030136,120]
[408590896,1773905481271,-500.0,0.00030136,120]
[408590897,1773905481280,-500.0,0.00030136,14]
[408590898,1773905481290,-500.0,0.00030136,120]
[408590899,1773905481299,-1300.77,0.00030136,120]
[408590900,1773905481309,-500.0,0.00030136,2]
[408590901,1773905481320,-799.29,0.00030136,120]
[408590902,1773905481330,-7396.09,0.00030136,2]
[408590903,1773905481340,-500.0,0.00030136,120]
[408590904,1773905481350,-6299.65,0.00030136,14]
[408590905,1773905481360,-500.0,0.00030136,2]
[408590906,1773905481370,-500.0,0.00030136,30]
[408590907,1773905481379,-500.0,0.00030136,120]
[408590908,1773905481389,-500.0,0.00030136,120]
[408590909,1773905481462,-500.0,0.00030136,30]
[408590910,1773905481472,-500.0,0.00030136,60]
[408590911,1773905481481,-500.0,0.00030136,120]
[408590912,1773905481492,-273.46484994,0.00030136,120]
[408590913,1773905481502,-712.99,0.00030136,120]
[408590914,1773905481513,-300.0,0.00030136,2]
[408590915,1773905481524,-10193.89,0.00030136,14]
[408590916,1773905481534,-500.0,0.00030136,16]
[408590917,1773905481547,-500.0,0.00030136,120]
[408590918,1773905481558,-500.0,0.00030136,120]
[408590919,1773905481568,-333.38243505,0.00030136,30]
[408590920,1773905481579,-1927.84,0.00030136,14]
[408590921,1773905481589,-534.09,0.00030136,120]
[408590922,1773905481599,-500.0,0.00030136,7]
[408590923,1773905481610,-500.0,0.00030136,120]
[408590924,1773905481619,-500.0,0.00030136,120]
[408590925,1773905481630,-243.24131139,0.00030136,120]
[408590926,1773905481640,-500.0,0.00030136,60]
[408590927,1773905481650,-500.0,0.00030136,120]
[408590928,1773905481659,-1589.34,0.00030136,120]
[408590929,1773905481668,-778.23,0.00030136,120]
[408590930,1773905481679,-25215.87,0.00030136,120]
[408590931,1773905481689,-500.0,0.00030136,120]
[408590932,1773905481700,-500.0,0.00030136,14]
[408590933,1773905481710,-500.0,0.00030136,120]
[408590934,1773905481720,-160.57488956,0.00030136,120]
[408590935,1773905481730,-500.0,0.00030136,120]
[408590936,1773905481740,-500.0,0.00030136,30]
[408590937,1773905481750,-537.53,0.00030136,120]
[408590938,1773905481760,-2662.42,0.00030136,7]
[408590939,1773905481769,-500.0,0.00030136,60]
[408590940,1773905481779,-500.0,0.00030136,30]
[408590941,1773905481788,-500.0,0.00030136,120]
[408590942,1773905481797,-220.87932929,0.00030136,120]
[408590943,1773905481807,-199.99164777,0.00030136,120]
[408590944,1773905481817,-500.0,0.00030136,7]
[408590945,1773905481827,-341.49105672,0.00030136,60]
[408590946,1773905481836,-500.0,0.00030136,120]
[408590947,1773905481846,-500.0,0.00030136,2]
[408590948,1773905481855,-699.29,0.00030136,120]
[408590949,1773905481865,-500.0,0.00030136,2]
[408590950,1773905481875,-500.0,0.00030136,2]
[408590951,1773905481884,-500.0,0.00030136,90]
[408590952,1773905481894,-1000.0,0.00030137,2]
[408590953,1773905481904,-4059.0704805,0.00030137,2]
[408590954,1773905481914,-872.57,0.00030137,2]
[408590955,1773905481923,-606.551997,0.00030137,7]
[408590956,1773905481932,-606.551997,0.00030137,7]
[408590957,1773905481942,-606.551997,0.00030137,7]
[408590958,1773905481951,-606.551997,0.00030137,7]
[408590959,1773905481960,-606.551997,0.00030137,7]
[408590960,1773905481969,-606.551997,0.00030137,7]
[408590961,1773905481979,-606.551997,0.00030137,7]
[408590962,1773905481989,-606.551997,0.00030137,7]
[408590963,1773905481999,-606.551997,0.00030137,7]
[408590964,1773905482008,-606.551997,0.00030137,7]
[408590965,1773905482018,-606.551997,0.00030137,7]
[408590966,1773905482027,-606.551997,0.00030137,7]
[408590967,1773905482036,-606.551997,0.00030137,7]
[408590968,1773905482046,-606.551997,0.00030137,7]
[408590969,1773905482055,-606.551997,0.00030137,7]
[408590970,1773905482065,-606.551997,0.00030137,7]
[408590971,1773905482075,-1568.15932123,0.00030137,5]
[408590972,1773905482084,-341.14316036,0.00030137,5]
[408590973,1773905482095,-970.91481922,0.00030137,120]
[408590974,1773905482104,-316.0,0.0003016,120]
[408590975,1773905482114,-15642.51791828,0.000302,2]
[408590976,1773905482125,-1000.0,0.000302,120]
[408590977,1773905482136,-1044.0,0.0003022,2]
[408590978,1773905482146,-1762.041,0.0003022,2]
[408590979,1773905482156,-2465.0,0.0003022,2]
[408590980,1773905482166,-3108.81,0.00030281,2]
[408590981,1773905482176,-278.41,0.00030281,2]
[408590982,1773905482187,-1108.43,0.00030281,2]
[408590983,1773905482197,-700.29,0.00030281,2]
[408590984,1773905482206,-310.88,0.00030281,2]
[408590985,1773905482216,-506.03,0.00030281,2]
[408590986,1773905482226,-150.0,0.00030315,2]
[408590987,1773905482236,-150.0,0.00030315,2]
[408590988,1773905482246,-501.0,0.00030406,16]
[408590989,1773905482256,-3613.47484438,0.00030409,60]
[408590990,1773905482266,-3613.47484438,0.00030409,60]
[408590991,1773905482275,-3613.47484437,0.00030409,60]
[408590992,1773905482284,-649.71,0.0003041,120]
[408590993,1773905482294,-500.0,0.0003041,7]
[408590994,1773905482303,-500.0,0.0003041,15]
[408590995,1773905482312,-500.0,0.0003041,2]
[408590996,1773905482321,-500.0,0.0003041,12]
[408590997,1773905482330,-433.06072087,0.0003041,120]
[408590998,1773905482340,-2522.04,0.0003041,14]
[408590999,1773905482349,-500.0,0.0003041,30]
[408591000,1773905482359,-500.0,0.0003041,30]
[408591001,1773905482368,-875.11,0.0003041,2]
[408591002,1773905482377,-300.0,0.0003041,2]
[408591003,1773905482386,-500.0,0.0003041,120]
[408591004,1773905482396,-1374.85,0.0003041,2]
[408591005,1773905482406,-699.08,0.0003041,120]
[408591006,1773905482417,-880.07,0.0003041,5]
[408591007,1773905482427,-500.0,0.0003041,30]
[408591008,1773905482438,-500.0,0.0003041,120]
[408591009,1773905482448,-500.0,0.0003041,120]
[408591010,1773905482459,-500.0,0.0003041,4]
[408591011,1773905482469,-394.88785426,0.0003041,120]
[408591012,1773905482480,-500.0,0.0003041,2]
[408591013,1773905482490,-535.46,0.0003041,2]
[408591014,1773905482500,-500.0,0.0003041,2]
[408591015,1773905482509,-826.12,0.0003041,120]
[408591016,1773905482519,-500.0,0.0003041,2]
[408591017,1773905482529,-620.41,0.0003041,2]
[408591018,1773905482542,-812.47,0.0003041,120]
[408591019,1773905482553,-500.0,0.0003041,120]
[408591020,1773905482563,-500.0,0.0003041,120]
[408591021,1773905482573,-500.0,0.0003041,120]
[408591022,1773905482584,-2105.78,0.0003041,7]
[408591023,1773905482594,-500.0,0.0003041,30]
[408591024,1773905482603,-543.94797597,0.0003041,120]
[408591025,1773905482613,-500.0,0.0003041,120]
[408591026,1773905482623,-1111.54,0.0003041,120]
[408591027,1773905482633,-987.08,0.0003041,120]
[408591028,1773905482643,-500.0,0.0003041,120]
[408591029,1773905482652,-1410.25,0.0003041,120]
[408591030,1773905482662,-1904.73,0.0003041,120]
[408591031,1773905482672,-500.0,0.0003041,120]
[408591032,1773905482683,-500.0,0.0003041,14]
[408591033,1773905482694,-648.19,0.0003041,120]
[408591034,1773905482704,-831.44,0.0003041,120]
[408591035,1773905482714,-796.08,0.0003041,120]
[408591036,1773905482725,-500.0,0.0003041,120]
[408591037,1773905482734,-500.0,0.0003041,120]
[408591038,1773905482744,-600.28,0.0003041,120]
[408591039,1773905482754,-737.65,0.0003041,120]
[408591040,1773905482764,-509.22,0.0003041,120]
[408591041,1773905482775,-500.0,0.0003041,120]
[408591042,1773905482785,-500.0,0.0003041,120]
[408591043,1773905482795,-500.0,0.0003041,90]
[408591044,1773905482806,-500.0,0.0003041,120]
[408591045,1773905482816,-281.14331773,0.0003041,120]
[408591046,1773905482825,-267.72454964,0.0003041,120]
[408591047,1773905482836,-557.66675401,0.0003041,120]
[408591048,1773905482845,-2298.5,0.0003041,120]
[408591049,1773905482856,-879.95,0.0003041,120]
[408591050,1773905482867,-500.0,0.0003041,120]
[408591051,1773905482877,-500.0,0.0003041,14]
[408591052,1773905482887,-500.0,0.0003041,120]
[408591053,1773905482897,-1300.77,0.0003041,120]
[408591054,1773905482908,-500.0,0.0003041,2]
[408591055,1773905482919,-799.29,0.0003041,120]
[408591056,1773905482930,-7396.09,0.0003041,2]
[408591057,1773905482940,-6299.65,0.0003041,14]
[408591058,1773905482951,-500.0,0.0003041,2]
[408591059,1773905482961,-262.96007747,0.0003041,30]
[408591060,1773905482971,-500.0,0.0003041,120]
[408591061,1773905482981,-500.0,0.0003041,120]
[408591062,1773905482991,-336.20428869,0.0003041,30]
[408591063,1773905483001,-500.0,0.0003041,60]
[408591064,1773905483011,-500.0,0.0003041,120]
[408591065,1773905483021,-712.99,0.0003041,120]
[408591066,1773905483031,-300.0,0.0003041,2]
[408591067,1773905483041,-10193.89,0.0003041,14]
[408591068,1773905483051,-500.0,0.0003041,16]
[408591069,1773905483063,-500.0,0.0003041,120]
[408591070,1773905483072,-500.0,0.0003041,120]
[408591071,1773905483082,-1927.84,0.0003041,14]
[408591072,1773905483092,-534.09,0.0003041,120]
[408591073,1773905483102,-500.0,0.0003041,7]
[408591074,1773905483112,-500.0,0.0003041,120]
[408591075,1773905483122,-500.0,0.0003041,120]
[408591076,1773905483132,-187.267722,0.0003041,60]
[408591077,1773905483142,-500.0,0.0003041,120]
[408591078,1773905483151,-1589.34,0.0003041,120]
[408591079,1773905483162,-778.23,0.0003041,120]
[408591080,1773905483172,-25215.87,0.0003041,120]
[408591081,1773905483183,-500.0,0.0003041,120]
[408591082,1773905483194,-500.0,0.0003041,14]
[408591083,1773905483204,-500.0,0.0003041,120]
[408591084,1773905483225,-500.0,0.0003041,120]
[408591085,1773905483236,-500.0,0.0003041,30]
[408591086,1773905483247,-537.53,0.0003041,120]
[408591087,1773905483257,-2662.42,0.0003041,7]
[408591088,1773905483267,-500.0,0.0003041,60]
[408591089,1773905483277,-500.0,0.0003041,30]
[408591090,1773905483287,-500.0,0.0003041,120]
[408591091,1773905483298,-500.0,0.0003041,7]
[408591092,1773905483309,-500.0,0.0003041,120]
[408591093,1773905483319,-500.0,0.0003041,2]
[408591094,1773905483330,-699.29,0.0003041,120]
[408591095,1773905483341,-302.25962676,0.0003041,2]
[408591096,1773905483352,-500.0,0.0003041,2]
[408591097,1773905483363,-500.0,0.0003041,90]
[408591098,1773905483375,-306.29,0.00030411,120]
[408591099,1773905483386,-416.0,0.00030447,14]
[408591100,1773905483396,-643.30743507,0.000305,120]
[408591101,1773905483407,-415.38,0.00030529,60]
[408591102,1773905483417,-2107.5,0.0003057,2]
[408591103,1773905483427,-3613.47484438,0.00030683,60]
[408591104,1773905483438,-3613.47484438,0.00030683,60]
[408591105,1773905483448,-3613.47484437,0.00030683,60]
[408591106,1773905483459,-649.71,0.00030684,120]
[408591107,1773905483470,-500.0,0.00030684,7]
[408591108,1773905483481,-500.0,0.00030684,15]
[408591109,1773905483492,-500.0,0.00030684,2]
[408591110,1773905483502,-500.0,0.00030684,12]
[408591111,1773905483513,-2522.04,0.00030684,14]
[408591112,1773905483524,-500.0,0.00030684,30]
[408591113,1773905483535,-500.0,0.00030684,30]
[408591114,1773905483550,-875.11,0.00030684,2]
[408591115,1773905483561,-300.0,0.00030684,2]
[408591116,1773905483572,-500.0,0.00030684,120]
[408591117,1773905483583,-1374.85,0.00030684,2]
[408591118,1773905483594,-699.08,0.00030684,120]
[408591119,1773905483604,-880.07,0.00030684,5]
[408591120,1773905483617,-500.0,0.00030684,30]
[408591121,1773905483628,-617.83153854,0.00030684,120]
[408591122,1773905483640,-500.0,0.00030684,120]
[408591123,1773905483652,-500.0,0.00030684,4]
[408591124,1773905483663,-500.0,0.00030684,2]
[408591125,1773905483674,-535.46,0.00030684,2]
[408591126,1773905483684,-500.0,0.00030684,2]
[408591127,1773905483695,-826.12,0.00030684,120]
[408591128,1773905483706,-500.0,0.00030684,2]
[408591129,1773905483717,-620.41,0.00030684,2]
[408591130,1773905483727,-812.47,0.00030684,120]
[408591131,1773905483738,-500.0,0.00030684,120]
[408591132,1773905483748,-500.0,0.00030684,120]
[408591133,1773905483758,-500.0,0.00030684,120]
[408591134,1773905483769,-2105.78,0.00030684,7]
[408591135,1773905483779,-500.0,0.00030684,30]
[408591136,1773905483789,-500.0,0.00030684,120]
[408591137,1773905483800,-1111.54,0.00030684,120]
[408591138,1773905483810,-987.08,0.00030684,120]
[408591139,1773905483821,-500.0,0.00030684,120]
[408591140,1773905483832,-1410.25,0.00030684,120]
[408591141,1773905483849,-1904.73,0.00030684,120]
[408591142,1773905483860,-500.0,0.00030684,120]
[408591143,1773905483871,-500.0,0.00030684,14]
[408591144,1773905483882,-648.19,0.00030684,120]
[408591145,1773905483894,-831.44,0.00030684,120]
[408591146,1773905483904,-796.08,0.00030684,120]
[408591147,1773905483915,-500.0,0.00030684,120]
[408591148,1773905483926,-500.0,0.00030684,120]
[408591149,1773905483937,-600.28,0.00030684,120]
[408591150,1773905483948,-737.65,0.00030684,120]
[408591151,1773905483959,-509.22,0.00030684,120]
[408591152,1773905483969,-500.0,0.00030684,120]
[408591153,1773905483980,-500.0,0.00030684,120]
[408591154,1773905483992,-500.0,0.00030684,90]
[408591155,1773905484003,-500.0,0.00030684,120]
[408591156,1773905484014,-2298.5,0.00030684,120]
[408591157,1773905484025,-879.95,0.00030684,120]
[408591158,1773905484036,-500.0,0.00030684,120]
[408591159,1773905484048,-500.0,0.00030684,14]
[408591160,1773905484059,-500.0,0.00030684,120]
[408591161,1773905484071,-1300.77,0.00030684,120]
[408591162,1773905484082,-500.0,0.00030684,2]
[408591163,1773905484093,-799.29,0.00030684,120]
[408591164,1773905484104,-7396.09,0.00030684,2]
[408591165,1773905484114,-6299.65,0.00030684,14]
[408591166,1773905484125,-500.0,0.00030684,2]
[408591167,1773905484135,-500.0,0.00030684,120]
[408591168,1773905484146,-500.0,0.00030684,120]
[408591169,1773905484156,-410.38897949,0.00030684,60]
[408591170,1773905484167,-500.0,0.00030684,120]
[408591171,1773905484178,-712.99,0.00030684,120]
[408591172,1773905484190,-300.0,0.00030684,2]
[408591173,1773905484202,-10193.89,0.00030684,14]
[408591174,1773905484213,-500.0,0.00030684,16]
[408591175,1773905484226,-500.0,0.00030684,120]
[408591176,1773905484237,-500.0,0.00030684,120]
[408591177,1773905484249,-1927.84,0.00030684,14]
[408591178,1773905484261,-534.09,0.00030684,120]
[408591179,1773905484272,-500.0,0.00030684,7]
[408591180,1773905484283,-500.0,0.00030684,120]
[408591181,1773905484293,-500.0,0.00030684,120]
[408591182,1773905484304,-500.0,0.00030684,120]
[408591183,1773905484315,-1589.34,0.00030684,120]
[408591184,1773905484325,-778.23,0.00030684,120]
[408591185,1773905484337,-25215.87,0.00030684,120]
[408591186,1773905484349,-500.0,0.00030684,120]
[408591187,1773905484360,-500.0,0.00030684,14]
[408591188,1773905484373,-500.0,0.00030684,120]
[408591189,1773905484384,-500.0,0.00030684,120]
[408591190,1773905484395,-500.0,0.00030684,30]
[408591191,1773905484407,-537.53,0.00030684,120]
[408591192,1773905484418,-2662.42,0.00030684,7]
[408591193,1773905484428,-500.0,0.00030684,60]
[408591194,1773905484438,-395.53443908,0.00030684,30]
[408591195,1773905484449,-500.0,0.00030684,120]
[408591196,1773905484461,-500.0,0.00030684,7]
[408591197,1773905484472,-500.0,0.00030684,120]
[408591198,1773905484489,-500.0,0.00030684,2]
[408591199,1773905484500,-699.29,0.00030684,120]
[408591200,1773905484512,-500.0,0.00030684,2]
[408591201,1773905484522,-500.0,0.00030684,90]
[408591202,1773905484533,-1261.0,0.00030804,2]
[408591203,1773905484546,-1215.0,0.00030804,2]
[408591204,1773905484557,-924.0,0.00030804,2]
[408591205,1773905484573,-150.0,0.00030834,2]
[408591206,1773905484588,-1620.1217695,0.0003084,2]
[408591207,1773905484604,-160.0,0.000309,120]
[408591208,1773905484618,-979.16666667,0.000309,10]
[408591209,1773905484630,-3613.47484438,0.00030957,60]
[408591210,1773905484641,-3613.47484438,0.00030957,60]
[408591211,1773905484651,-3613.47484437,0.00030957,60]
[408591212,1773905484663,-649.71,0.00030958,120]
[408591213,1773905484674,-500.0,0.00030958,7]
[408591214,1773905484684,-500.0,0.00030958,15]
[408591215,1773905484694,-500.0,0.00030958,2]
[408591216,1773905484704,-500.0,0.00030958,12]
[408591217,1773905484715,-2522.04,0.00030958,14]
[408591218,1773905484727,-500.0,0.00030958,30]
[408591219,1773905484737,-500.0,0.00030958,30]
[408591220,1773905484748,-875.11,0.00030958,2]
[408591221,1773905484758,-300.0,0.00030958,2]
[408591222,1773905484770,-500.0,0.00030958,120]
[408591223,1773905484781,-1374.85,0.00030958,2]
[408591224,1773905484791,-699.08,0.00030958,120]
[408591225,1773905484802,-880.07,0.00030958,5]
[408591226,1773905484813,-500.0,0.00030958,30]
[408591227,1773905484823,-500.0,0.00030958,120]
[408591228,1773905484834,-500.0,0.00030958,4]
[408591229,1773905484845,-500.0,0.00030958,2]
[408591230,1773905484855,-535.46,0.00030958,2]
[408591231,1773905484865,-500.0,0.00030958,2]
[408591232,1773905484876,-826.12,0.00030958,120]
[408591233,1773905484886,-500.0,0.00030958,2]
[408591234,1773905484896,-620.41,0.00030958,2]
[408591235,1773905484907,-812.47,0.00030958,120]
[408591236,1773905484922,-500.0,0.00030958,120]
[408591237,1773905484932,-500.0,0.00030958,120]
[408591238,1773905484944,-500.0,0.00030958,120]
[408591239,1773905484954,-2105.78,0.00030958,7]
[408591240,1773905484964,-500.0,0.00030958,30]
[408591241,1773905484975,-500.0,0.00030958,120]
[408591242,1773905484985,-1111.54,0.00030958,120]
[408591243,1773905484995,-987.08,0.00030958,120]
[408591244,1773905485005,-500.0,0.00030958,120]
[408591245,1773905485015,-1410.25,0.00030958,120]
[408591246,1773905485025,-1904.73,0.00030958,120]
[408591247,1773905485035,-500.0,0.00030958,120]
[408591248,1773905485045,-500.0,0.00030958,14]
[408591249,1773905485055,-831.44,0.00030958,120]
[408591250,1773905485066,-648.19,0.00030958,120]
[408591251,1773905485076,-796.08,0.00030958,120]
[408591252,1773905485087,-500.0,0.00030958,120]
[408591253,1773905485098,-500.0,0.00030958,120]
[408591254,1773905485110,-600.28,0.00030958,120]
[408591255,1773905485120,-737.65,0.00030958,120]
[408591256,1773905485131,-509.22,0.00030958,120]
[408591257,1773905485145,-500.0,0.00030958,120]
[408591258,1773905485156,-500.0,0.00030958,120]
[408591259,1773905485166,-500.0,0.00030958,90]
[408591260,1773905485178,-500.0,0.00030958,120]
[408591261,1773905485188,-2298.5,0.00030958,120]
[408591262,1773905485199,-879.95,0.00030958,120]
[408591263,1773905485212,-202.98340396,0.00030958,120]
[408591264,1773905485224,-500.0,0.00030958,14]
[408591265,1773905485236,-500.0,0.00030958,120]
[408591266,1773905485249,-1300.77,0.00030958,120]
[408591267,1773905485259,-500.0,0.00030958,2]
[408591268,1773905485270,-799.29,0.00030958,120]
[408591269,1773905485280,-7396.09,0.00030958,2]
[408591270,1773905485290,-6299.65,0.00030958,14]
[408591271,1773905485301,-500.0,0.00030958,2]
[408591272,1773905485311,-500.0,0.00030958,120]
[408591273,1773905485321,-500.0,0.00030958,120]
[408591274,1773905485332,-500.0,0.00030958,120]
[408591275,1773905485343,-300.0,0.00030958,2]
[408591276,1773905485357,-712.99,0.00030958,120]
[408591277,1773905485368,-10193.89,0.00030958,14]
[408591278,1773905485379,-500.0,0.00030958,16]
[408591279,1773905485390,-293.21406765,0.00030958,120]
[408591280,1773905485402,-500.0,0.00030958,120]
[408591281,1773905485412,-1927.84,0.00030958,14]
[408591282,1773905485423,-534.09,0.00030958,120]
[408591283,1773905485433,-500.0,0.00030958,7]
[408591284,1773905485445,-500.0,0.00030958,120]
[408591285,1773905485456,-500.0,0.00030958,120]
[408591286,1773905485467,-500.0,0.00030958,120]
[408591287,1773905485478,-1589.34,0.00030958,120]
[408591288,1773905485488,-778.23,0.00030958,120]
[408591289,1773905485500,-25215.87,0.00030958,120]
[408591290,1773905485511,-500.0,0.00030958,120]
[408591291,1773905485523,-500.0,0.00030958,14]
[408591292,1773905485535,-378.31915119,0.00030958,120]
[408591293,1773905485549,-500.0,0.00030958,120]
[408591294,1773905485561,-500.0,0.00030958,30]
[408591295,1773905485572,-537.53,0.00030958,120]
[408591296,1773905485583,-2662.42,0.00030958,7]
[408591297,1773905485597,-500.0,0.00030958,60]
[408591298,1773905485608,-500.0,0.00030958,120]
[408591299,1773905485621,-500.0,0.00030958,7]
[408591300,1773905485633,-500.0,0.00030958,2]
[408591301,1773905485644,-699.29,0.00030958,120]
[408591302,1773905485655,-500.0,0.00030958,2]
[408591303,1773905485665,-500.0,0.00030958,90]
[408591304,1773905485675,-51918.60803875,0.00031,2]
[408591305,1773905485685,-346.08147786,0.00031,5]
[408591306,1773905485696,-179.44515032,0.00031,120]
[408591307,1773905485707,-160.0,0.00031,7]
[408591308,1773905485720,-500.0,0.00031,120]
[408591309,1773905485731,-5229.0,0.00031,30]